Cogmind - Beta 15 @@@ ROGUE MODE // 2025.08.05 @ 04:11:07 Player: shapeshifter Result: Self-destructed Performance ------------- Evolutions (4) 2000 Regions Visited (8) 1600 Robots Destroyed (0) 0 Value Destroyed (0) 0 Prototype IDs (0) 0 Alien Tech Used (0) 0 Bonus (1461) 1461 TOTAL SCORE: 5061 Bonus ------- Pacifist 961 Entered DSFs 500 Cogmind --------- Core Integrity 814/850 Matter 172/300 Energy 380/380 System Corruption 0% Temperature Cool (0) Movement Walking (130) Location -6/Lower Caves Parts ------- > --- POWER (3) -------- Nuclear Core Nuclear Core > --- PROPULSION (6) --- Improved Titanium Leg Improved Titanium Leg Improved Titanium Leg > --- UTILITY (4) ------ Large Storage Unit Enhanced Optical Array Hardened Heavy Armor Plating > --- WEAPON (2) ------- (None) > --- INVENTORY (15) --- Nuclear Core Improved Titanium Leg Improved Titanium Leg Small Storage Unit Hardened Heavy Armor Plating Hardened Heavy Armor Plating Powered Armor Powered Armor Powered Armor Remote Shield Peak State ------------ > --- POWER ------------ Nuclear Core Nuclear Core Nuclear Core > --- PROPULSION ------- Improved Titanium Leg Improved Titanium Leg Improved Titanium Leg Improved Titanium Leg Improved Titanium Leg Improved Titanium Leg > --- UTILITY ---------- Large Storage Unit Enhanced Optical Array Hardened Heavy Armor Plating > --- WEAPON ----------- (None) > --- INVENTORY -------- Nuclear Core Improved Titanium Leg Improved Titanium Leg Small Storage Unit Hardened Heavy Armor Plating Hardened Heavy Armor Plating Powered Armor Powered Armor Powered Armor Remote Shield [Rating: 51] Favorites ----------- Power Nuclear Core Engine Light Ion Engine Power Core Nuclear Core Propulsion Improved Titanium Leg Leg Improved Titanium Leg Hover Unit Improved Hover Unit Utility Large Storage Unit Storage Large Storage Unit Processor Enhanced Optical Array Protection Hardened Heavy Armor Plating Weapon None Build | -11 -10 -9 -9 -9 -7 -7 -6 -6 ------- Run | Yrd Mat Mat Sto Rec Fac DSF Fac Low Slots Evolved 8 | . . 2 . . 4 . 2 . Power 2 | . . . . . 1 . 1 . Propulsion 4 | . . 2 . . 2 . . . Utility 2 | . . . . . 1 . 1 . Weapon . | . . . . . . . . . Parts Attached 20 | 1 . . 1 . . 14 4 . Power 5 | 1 . . . . . 3 1 . Engine 2 | 1 . . . . . 1 . . Core 3 | . . . . . . 2 1 . Reactor . | . . . . . . . . . Propulsion 9 | . . . 1 . . 8 . . Treads . | . . . . . . . . . Leg 8 | . . . . . . 8 . . Wheel . | . . . . . . . . . Hover 1 | . . . 1 . . . . . Flight . | . . . . . . . . . Utility 6 | . . . . . . 3 3 . Device . | . . . . . . . . . Storage 2 | . . . . . . 2 . . Processor 1 | . . . . . . . 1 . Hackware . | . . . . . . . . . Protection 3 | . . . . . . 1 2 . Artifact . | . . . . . . . . . Weapon . | . . . . . . . . . Energy Gun . | . . . . . . . . . Energy Cannon . | . . . . . . . . . Ballistic Gun . | . . . . . . . . . Ballistic Cannon . | . . . . . . . . . Launcher . | . . . . . . . . . Special Weapon . | . . . . . . . . . Impact Weapon . | . . . . . . . . . Slashing Weapon . | . . . . . . . . . Piercing Weapon . | . . . . . . . . . Special Melee Weapon . | . . . . . . . . . Unidentified Prototypes . | . . . . . . . . . Parts Lost 8 | . . . . 1 . 3 3 1 Power 3 | . . . . . . 2 1 . Propulsion 4 | . . . . 1 . . 2 1 Utility 1 | . . . . . . 1 . . Weapon . | . . . . . . . . . Highest Loss Streak 3 | . . . . 1 . 2 2 3 To Critical Strikes . | . . . . . . . . . Average Backups 6 | 1 3 4 4 4 4 5 9 10 Power 1 | 1 2 2 2 2 2 . 1 1 Propulsion 1 | . . . . . . 2 2 2 Utility 3 | . 1 2 2 2 2 2 6 7 Weapon . | . . . . . . . . . Tool/Special . | . . . . . . . . . Unused Backups 10 | 1 . . . . . . . 9 Power 1 | . . . . . . . . 1 Propulsion 3 | 1 . . . . . . . 2 Utility 6 | . . . . . . . . 6 Weapon . | . . . . . . . . . Tool/Special . | . . . . . . . . . Average Slot Usage (%) 39 | . . . 5 5 . 52 75 56 Core 7 | . . . . . . 3 18 13 Leg 21 | . . . . . . 37 39 23 Hover 1 | . . . 5 5 . . . . Storage 3 | . . . . . . 6 6 6 Protection 3 | . . . . . . 2 9 6 Peak Build Rating 51 | 1 . . 2 2 . 43 51 40 Average Rating 23 | . . . 1 . . 28 48 37 On Entrance 8 | . . . . 2 . . 34 40 Naked Turns 230 | . 53 40 14 81 37 5 . . Heaviest Build 71 | . . . . . . 54 71 54 Greatest Support 120 | 3 3 3 7 7 3 120 120 80 Greatest Overweight (x) . | . . . . . . . . . Average Overweight (x) . | . . . . . . . . . Largest Inventory Capacity 15 | 5 5 5 5 5 5 15 15 15 Average Capacity 10 | 5 5 5 5 5 5 13 15 15 Most Carried 13 | 3 4 4 5 4 4 12 13 12 Average Carried 7 | 1 3 4 4 4 4 6 11 12 Final Capacity 15 | 5 5 5 5 5 5 15 15 15 Final Carried 12 | 3 4 4 4 4 4 11 12 12 Class Distribution -------------------- 100% | Mutant Dominant Class ---------------- Mutant | -10/Materials Mutant | -9/Materials Mutant | -9/Storage Mutant | -9/Recycling Mutant | -7/Factory Mutant | -7/DSF Mutant | -6/Factory Mutant | -6/Lower Caves Resources | -11 -10 -9 -9 -9 -7 -7 -6 -6 ----------- Run | Yrd Mat Mat Sto Rec Fac DSF Fac Low Matter Collected 229 | 145 . . . 73 . 11 . . Remotely . | . . . . . . . . . Salvage Created . | . . . . . . . . . Parts . | . . . . . . . . . Haulers Intercepted . | . . . . . . . . . Recyclers Shooed 1 | . . . . 1 . . . . Parts Field Recycled . | . . . . . . . . . Retrieved Matter . | . . . . . . . . . Parts Self-Destructed . | . . . . . . . . . Prevented . | . . . . . . . . . Kills | -11 -10 -9 -9 -9 -7 -7 -6 -6 ------- Run | Yrd Mat Mat Sto Rec Fac DSF Fac Low Combat Hostiles Destroyed . | . . . . . . . . . Classes Destroyed . | . . . . . . . . . Best Kill Streak . | . . . . . . . . . Combat Bots Only . | . . . . . . . . . Max Kills in Single Turn . | . . . . . . . . . Gunslinging . | . . . . . . . . . Exploded . | . . . . . . . . . Melee . | . . . . . . . . . Uniques/NPCs Destroyed . | . . . . . . . . . Combat | -11 -10 -9 -9 -9 -7 -7 -6 -6 -------- Run | Yrd Mat Mat Sto Rec Fac DSF Fac Low Hostile Shots Fired 331 | . 11 29 14 8 . 119 111 39 Missed 140 | . 3 11 8 2 . 40 61 15 Hits 191 | . 8 18 6 6 . 79 50 24 Projectile 191 | . 8 18 6 6 . 79 50 24 Critical Strikes 7 | . . . . . . 5 . 2 Damage Taken 2986 | . 100 242 91 87 . 1637 365 464 Core 683 | . 100 242 58 72 . 175 18 18 Absorbed by Shields . | . . . . . . . . . Core Remaining (%) 60 | 100 60 . . 7 . 75 . . Volleys Fired . | . . . . . . . . . Largest . | . . . . . . . . . Hottest . | . . . . . . . . . Shots Fired . | . . . . . . . . . Gun . | . . . . . . . . . Cannon . | . . . . . . . . . Launcher . | . . . . . . . . . Special . | . . . . . . . . . Kinetic . | . . . . . . . . . Thermal . | . . . . . . . . . Explosive . | . . . . . . . . . Electromagnetic . | . . . . . . . . . Robot Hit Streak . | . . . . . . . . . Robot Miss Streak . | . . . . . . . . . Penetration Max . | . . . . . . . . . Secondary Targets . | . . . . . . . . . Shots Hit Robots . | . . . . . . . . . Core Hits 1 | . . . . 1 . . . . Critical Kills . | . . . . . . . . . Critical Parts Destroyed . | . . . . . . . . . Critical Strikes . | . . . . . . . . . Melee Attacks . | . . . . . . . . . Impact . | . . . . . . . . . Slashing . | . . . . . . . . . Piercing . | . . . . . . . . . Sneak Attacks . | . . . . . . . . . Combat Hostiles . | . . . . . . . . . Follow-up Attacks . | . . . . . . . . . Damage Inflicted 48 | . . 8 . 3 . 13 24 . Guns . | . . . . . . . . . Cannons . | . . . . . . . . . Explosions . | . . . . . . . . . Melee . | . . . . . . . . . Ramming 48 | . . 8 . 3 . 13 24 . Kinetic . | . . . . . . . . . Thermal . | . . . . . . . . . Explosive . | . . . . . . . . . Electromagnetic . | . . . . . . . . . Impact . | . . . . . . . . . Slashing . | . . . . . . . . . Piercing . | . . . . . . . . . Highest Corruption . | . . . . . . . . . Average Corruption . | . . . . . . . . . Corruption Purged . | . . . . . . . . . Corruption Blocked . | . . . . . . . . . Overload Shots . | . . . . . . . . . Overflow Damage . | . . . . . . . . . Projectiles . | . . . . . . . . . Explosions . | . . . . . . . . . Melee . | . . . . . . . . . Knockbacks . | . . . . . . . . . Impact . | . . . . . . . . . Kinetic . | . . . . . . . . . Secondary . | . . . . . . . . . Self-Inflicted Damage 5 | . . 4 . 1 . . . . Shots . | . . . . . . . . . Rammed 2 | . . 1 . 1 . . . . Targets Rammed 6 | . . 1 . 1 . 2 2 . Kicked 4 | . . . . . . 2 2 . Crushed . | . . . . . . . . . Highest Temperature 340 | . . . . . . 6 340 61 Average Temperature 148 | . . . . . . 3 165 27 Received Heat Transfer 718 | . 54 90 18 27 . 225 96 208 Siege Activations . | . . . . . . . . . Martial Activations . | . . . . . . . . . Shielding Activations . | . . . . . . . . . Robots Disrupted . | . . . . . . . . . Combat Hostiles . | . . . . . . . . . Robots Corrupted . | . . . . . . . . . Combat Hostiles . | . . . . . . . . . Parts Fried . | . . . . . . . . . Impact Corruptions . | . . . . . . . . . Robots Melted . | . . . . . . . . . Combat Hostiles . | . . . . . . . . . Parts Melted . | . . . . . . . . . Heat Transferred . | . . . . . . . . . Parts Sabotaged . | . . . . . . . . . Parts Stolen . | . . . . . . . . . Parts Stripped . | . . . . . . . . . Power Chain Reactions . | . . . . . . . . . Alert | -11 -10 -9 -9 -9 -7 -7 -6 -6 ------- Run | Yrd Mat Mat Sto Rec Fac DSF Fac Low Maximum Alert Level . | . . . . . . . . . Low Security (%) 100 | 100 100 100 100 100 100 100 100 . Level 1 . | . . . . . . . . . Level 2 . | . . . . . . . . . Level 3 . | . . . . . . . . . Level 4 . | . . . . . . . . . Level 5 . | . . . . . . . . . High Security . | . . . . . . . . . Max Security . | . . . . . . . . . Peak Influence 108 | . 30 28 5 20 108 68 27 . Initial 108 | . . 12 5 . 108 68 27 . Average 18 | . 1 18 2 1 103 62 3 . Influence Increases 197 | . 30 22 . 30 100 15 . . Successful Hack 22 | . . 22 . . . . . . Advance Influence 100 | . . . . . 100 . . . Lose Combat Pursuer 75 | . 30 . . 30 . 15 . . Influence Decreases 197 | . . 38 14 10 22 60 53 . Entered New Map 95 | . . 18 9 . 12 30 26 . Time Decay 72 | . . 20 5 10 10 . 27 . Lost Part 30 | . . . . . . 30 . . Squads Dispatched 4 | . . 2 1 . . 1 . . Investigation 1 | . . 1 . . . . . . Extermination . | . . . . . . . . . Reinforcement 3 | . . 1 1 . . 1 . . Assault . | . . . . . . . . . Garrison . | . . . . . . . . . Intercept . | . . . . . . . . . Searches Triggered . | . . . . . . . . . Construction Impeded . | . . . . . . . . . Haulers Reinforced . | . . . . . . . . . Active Scanning Responses . | . . . . . . . . . Cargo Convoy Interrupts . | . . . . . . . . . Stealth | -11 -10 -9 -9 -9 -7 -7 -6 -6 --------- Run | Yrd Mat Mat Sto Rec Fac DSF Fac Low Distress Signals 1 | . . . . . . . 1 . Communications Jammed . | . . . . . . . . . Distress Signals . | . . . . . . . . . Times Spotted 44 | . 6 9 4 2 . 9 4 10 Peak Tracking Total 12 | . 6 9 4 2 . 8 4 12 Tactical Retreats 3 | . 1 . . 1 . 1 . . Traps | -11 -10 -9 -9 -9 -7 -7 -6 -6 ------- Run | Yrd Mat Mat Sto Rec Fac DSF Fac Low Traps Triggered 1 | . . . . . . 1 . . Indirectly . | . . . . . . . . . Trap Hack Attempts . | . . . . . . . . . Triggered . | . . . . . . . . . Disarmed . | . . . . . . . . . Reprogrammed . | . . . . . . . . . Reused . | . . . . . . . . . Traps Extracted . | . . . . . . . . . Installed . | . . . . . . . . . Triggered . | . . . . . . . . . Machines | -11 -10 -9 -9 -9 -7 -7 -6 -6 ---------- Run | Yrd Mat Mat Sto Rec Fac DSF Fac Low Machines Disabled . | . . . . . . . . . Max in Single Turn . | . . . . . . . . . Machines Repaired . | . . . . . . . . . Machines Dismantled . | . . . . . . . . . Machines Sabotaged . | . . . . . . . . . Overloaded Fab Kills . | . . . . . . . . . Hacking | -11 -10 -9 -9 -9 -7 -7 -6 -6 --------- Run | Yrd Mat Mat Sto Rec Fac DSF Fac Low Machines Accessed 10 | . 2 3 1 2 1 . 1 . Terminals 10 | . 2 3 1 2 1 . 1 . Fabricators . | . . . . . . . . . Repair Stations . | . . . . . . . . . Recycling Units . | . . . . . . . . . Scanalyzers . | . . . . . . . . . Garrison Access . | . . . . . . . . . Total Hacks 27 | . 5 10 2 6 2 . 2 . Successful 11 | . 1 7 1 1 1 . . . Failed 16 | . 4 3 1 5 1 . 2 . Catastrophic 4 | . 1 1 1 1 . . . . Database Lockouts . | . . . . . . . . . Manual 20 | . 6 5 3 4 . . 2 . Terminals 27 | . 5 10 2 6 2 . 2 . Fabricators . | . . . . . . . . . Repair Stations . | . . . . . . . . . Recycling Units . | . . . . . . . . . Scanalyzers . | . . . . . . . . . Garrison Access . | . . . . . . . . . Terminal Hacks 9 | . 1 5 1 1 1 . . . Robot Analysis 1 | . . 1 . . . . . . Open DSF 1 | . . . . . 1 . . . Branch Access Points 2 | . 1 . 1 . . . . . Emergency Access Points 1 | . . 1 . . . . . . Registered Components 1 | . . 1 . . . . . . Zone Layout 3 | . . 2 . 1 . . . . Fabricator Hacks . | . . . . . . . . . Repair Station Hacks . | . . . . . . . . . Recycling Unit Hacks . | . . . . . . . . . Scanalyzer . | . . . . . . . . . Garrison Access Hacks . | . . . . . . . . . Unauthorized Hacks 2 | . . 2 . . . . . . Terminals 2 | . . 2 . . . . . . Botnet 2 | . . 2 . . . . . . Fabricators . | . . . . . . . . . Repair Stations . | . . . . . . . . . Recycling Units . | . . . . . . . . . Scanalyzers . | . . . . . . . . . Garrison Access . | . . . . . . . . . Data Cores Recovered . | . . . . . . . . . Used . | . . . . . . . . . Hacking Detections 6 | . 1 2 . 2 . . 1 . Full Trace Events 3 | . . 1 . 2 . . . . Feedback Events . | . . . . . . . . . Feedback Blocked . | . . . . . . . . . Robot Schematics Acquired . | . . . . . . . . . Robots Built . | . . . . . . . . . Authchips . | . . . . . . . . . Time . | . . . . . . . . . Total Robot Build Rating . | . . . . . . . . . Part Schematics Acquired . | . . . . . . . . . Parts Built . | . . . . . . . . . Authchips . | . . . . . . . . . Time . | . . . . . . . . . Total Part Build Rating . | . . . . . . . . . Parts Repaired . | . . . . . . . . . Time . | . . . . . . . . . Parts Recycled . | . . . . . . . . . Recycled Matter . | . . . . . . . . . Retrieved Matter . | . . . . . . . . . Retrieved Components . | . . . . . . . . . Parts Scanalyzed . | . . . . . . . . . Part Schematics Acquired . | . . . . . . . . . Parts Damaged . | . . . . . . . . . Bothacking | -11 -10 -9 -9 -9 -7 -7 -6 -6 ------------ Run | Yrd Mat Mat Sto Rec Fac DSF Fac Low Used RIF Installer . | . . . . . . . . . Robots Hacked . | . . . . . . . . . Non-combat . | . . . . . . . . . Combat . | . . . . . . . . . Robot Hacks Applied . | . . . . . . . . . Relay Couplers Released . | . . . . . . . . . Fabnet Peak Effective % . | . . . . . . . . . Robots Rewired . | . . . . . . . . . Allies Hacked . | . . . . . . . . . Hacks Repelled . | . . . . . . . . . Allies | -11 -10 -9 -9 -9 -7 -7 -6 -6 -------- Run | Yrd Mat Mat Sto Rec Fac DSF Fac Low Total Allies . | . . . . . . . . . Largest Group . | . . . . . . . . . Highest-Rated Group . | . . . . . . . . . Highest-Rated Ally . | . . . . . . . . . Total Orders . | . . . . . . . . . Ally Attacks . | . . . . . . . . . Total Damage . | . . . . . . . . . Kills . | . . . . . . . . . Allies Corrupted . | . . . . . . . . . Allies Melted . | . . . . . . . . . Intel | -11 -10 -9 -9 -9 -7 -7 -6 -6 ------- Run | Yrd Mat Mat Sto Rec Fac DSF Fac Low Active Infowar (turns) 101 | . . . . . . . 71 30 Optics 101 | . . . . . . . 71 30 Robot Analysis Total 1 | . . 1 . . . . . . Derelict Logs Recovered . | . . . . . . . . . Drone Launches . | . . . . . . . . . Drone Recoveries . | . . . . . . . . . Exploration | -11 -10 -9 -9 -9 -7 -7 -6 -6 ------------- Run | Yrd Mat Mat Sto Rec Fac DSF Fac Low Turns Passed 811 | 22 53 40 46 154 37 132 297 30 Spaces Moved 953 | 31 103 79 77 279 73 75 213 23 Core 479 | 31 103 79 24 163 73 6 . . Treads . | . . . . . . . . . Legs 305 | . . . . . . 69 213 23 Wheels . | . . . . . . . . . Hover 169 | . . . 53 116 . . . . Flight . | . . . . . . . . . Fastest Speed 50 | 50 50 50 50 50 50 50 130 130 Average Speed 77 | 50 50 50 56 54 50 123 130 130 Slowest Speed 130 | 50 50 50 60 60 50 130 130 130 Overloaded Moves . | . . . . . . . . . Propulsion Burnouts . | . . . . . . . . . Robots Hopped . | . . . . . . . . . Potential Cave-ins . | . . . . . . . . . Cave-ins Triggered . | . . . . . . . . . Exploration Rate (%) 26 | 3 28 13 25 76 4 70 9 11 Regions Visited 8 Branch Regions 3 Pre-discovered Areas . | . . . . . . . . . Known Exits Taken 2 | . . . 1 . 1 . . . Unknown Exits Taken 5 | 1 1 1 . 1 . . 1 . Scrap Searched . | . . . . . . . . . Spaces Dug . | . . . . . . . . . Terrain Destroyed . | . . . . . . . . . Melee . | . . . . . . . . . Projectile . | . . . . . . . . . AOE . | . . . . . . . . . Terrain Rammed . | . . . . . . . . . Walls Destroyed . | . . . . . . . . . Machines Disabled . | . . . . . . . . . Actions | -11 -10 -9 -9 -9 -7 -7 -6 -6 --------- Run | Yrd Mat Mat Sto Rec Fac DSF Fac Low Total 1019 | 37 103 79 78 281 72 113 233 23 Wait 16 | . . . . 2 . 6 8 . Move 946 | 30 102 79 76 278 72 74 212 23 Hop . | . . . . . . . . . Pick Up 27 | 4 1 . 1 . . 15 6 . Fast Attach 3 | . . . . . . 3 . . Attach 18 | 1 . . 1 . . 12 4 . Detach 2 | 1 . . . . . 1 . . Swap . | . . . . . . . . . Drop 2 | 1 . . . . . . 1 . Fire . | . . . . . . . . . Melee . | . . . . . . . . . Ram 1 | . . . . 1 . . . . Kick 4 | . . . . . . 2 2 . Crush . | . . . . . . . . . Escape Stasis . | . . . . . . . . . Rewire . | . . . . . . . . . Trap . | . . . . . . . . . Miscellaneous . | . . . . . . . . . Route ------- -11/Scrapyard -10/Materials (discovered 3 exits: *Mat / Min x2) -9/Materials -9/Storage -9/Recycling -7/Factory -7/DSF -6/Factory -6/Lower Caves History --------- Turn | Location | Event 5 | -11/Scrapyard | Discovered new exit (range 16) 23 | -11/Scrapyard | Entered Materials 46 | -10/Materials | Identified exit to Mines 69 | -10/Materials | Discovered new exit (range 13) 76 | -10/Materials | Entered another Materials area 76 | -9/Materials | Evolved 2 slots: Propulsion x2 109 | -9/Materials | Discovered new exit (range 16) 116 | -9/Materials | Core integrity fell below 50% 116 | -9/Materials | Entered Storage 131 | -9/Storage | Identified exit to Recycling 159 | -9/Storage | Used back door to open Recycling access 162 | -9/Storage | Entered Recycling 229 | -9/Recycling | Core integrity fell below 20% 303 | -9/Recycling | Build established: Mutant 308 | -9/Recycling | Discovered new exit (range 15) 316 | -9/Recycling | Entered Factory 316 | -7/Factory | Evolved 4 slots: Power x1, Propulsion x2, Utility x1 352 | -7/Factory | Identified exit to DSF 353 | -7/Factory | Entered DSF 422 | -7/DSF | Additional patrols routed to DSF 446 | -7/DSF | Discovered new exit (range 16) 485 | -7/DSF | Entered Factory 485 | -6/Factory | Evolved 2 slots: Power x1, Utility x1 549 | -6/Factory | Found Powered Armor 551 | -6/Factory | Found Powered Armor 553 | -6/Factory | Found Powered Armor 555 | -6/Factory | Found Powered Armor 757 | -6/Factory | Discovered new exit (range 19) 782 | -6/Factory | Entered Lower Caves 793 | -6/Lower Caves | Attracted the attention of an 0b10 outpost 801 | -6/Lower Caves | Spotted B-75 Beast 812 | -6/Lower Caves | Self-destructed Last Messages --------------- 00672_ Connecting with Terminal... 00672_ Current location identified: Factory 00709_ Dropped Powered Armor. 00710_ Acquired Enh. Optical Array. 00717_ Kicked Y-54 Guardian. 00718_ Kicked Y-54 Guardian out of the way. 00720_ Nuclear Core destroyed. 00752_ W-25 Informer sends out distress signal. 00757_ EXIT=FOUND 00774_ Imp. Titanium Leg destroyed. LOCATION=UNKNOWN GOAL=ESCAPE 00792_ Critical hit (Burn: +37). 00792_ Slug penetrates Wall. 00793_ Y-64 Sentinel: "DETECTED UNIDENTIFIED DERELICT." 00794_ Imp. Titanium Leg destroyed. 00795_ Penetrated by Slug. 00797_ Y-64 Sentinel: "REQUESTING BACKUP." 00797_ Critical hit (Burn: +50). Map ----- +----------------------------------------------------+ | ????????????? ????? # ?????????#??????????? | | ?????###?????? #?##### ????????? ##?????????? | | ?????? ???? #??""# ????????? ##????????? | | ???????? ???# #?? # #???????? ##???????? | | ????????? ### #??? #??????? #???????? | | ??????????? #???? #??????? #????????? | | ????????????? #????# ######? #?????????? | | ??????????????? #????? ## #?????????? | | ????????????????# ####### #?????????? | | ????????????????# #??????????? | | ??# #### ## #???????????? | | #????????????? | | # ### ### ######????????????? | | ???????????# ### ##?# #?????????????????? | | ???????????#????####?# ###g #?????????????????? | | ???????????????????# #####g #?????????????????? | | ??????????????????# ##?##s #?????????????????? | | ??????????????????#####??## #?????????????????? | | ?????????????????????????# #?????????????????? | | ???????????????????#######*= ######????????????? | | ??????????????????## #???????????? | | ?????????????????## ! ## #??????????? | | ?????????????????# #?### # #???????? | | ?????????????????# # ##### ##???????? | | ?????????????????# ## #????? | | ?????????????????## ## @ #### #????? | | ??????????????????#####g ##????? #????? | | ??????????????????????# ##??????# ?????? | | ??????????????????????#######????????# #????? | | ?????????????????????????????????????? #????? | | ???????????????????????????????????????######????? | | ?????????????????????????????????????????????????? | | ?????????????????????????????????????????????????? | | ?????????????????????????????????????????????????? | | ?????????????????????????????????????????????????? | | ?????????????????????????????????????????????????? | | ?????????????????????????????????????????????????? | | ?????????????????????????????????????????????????? | | ?????????????????????????????????????????????????? | | ?????????????????????????????????????????????????? | | ?????????????????????????????????????????????????? | | ?????????????????????????????????????????????????? | | ?????????????????????????????????????????????????? | | ?????????????????????????????????????????????????? | | | | | | | | | | | | | +----------------------------------------------------+ Best States ------------- Heat Dissipation 37 Energy Generation 32 Energy Capacity 520 Matter Stores 300 Matter Capacity 300 Sight Range 22 Terrain Scan Density 10 Armor Coverage 1000 Evasion (%) 55 Item Schematics ----------------- None Robot Schematics ------------------ None Fabricated ------------ Nothing Repaired ---------- Nothing Alien Tech Used ----------------- None Achievements -------------- None Challenges ------------ None Game ------ Seed ShiftSurveybotSpoofer Manual? 0 Play Time 00:13:20 Cumulative 98.2 hours Start 2025.08.05 @ 03:56:40 End 2025.08.05 @ 04:11:07 Sessions 1 Manual Loads 0 Difficulty Rogue Special Mode None Game No. 175 Rogue 175 Adventurer 0 Explorer 0 Win Type - Total 1 Types 1/0/0/0/0/0/0/0/0/0 Lore% 64 Gallery% 58 Achievement% 43 Wizard Run 0 Options --------- Layout 1 ASCII 0 Keyboard 0 Movement Numpad Keybinds 0 Fullscreen 1 Font 24/Smallcaps Map View 50x35 Zoom Use 0% Tactical HUD 1 Map Filters NONE Filters NONE Steam 1 RUN: 9d66eb54-6b1d-4025-8b19-b026b5276d0b